fUSD/lending_fUSD_20241106
["ID","MTS","AMOUNT","RATE_DAILY","PERIOD"]
[341464548,1730909455974,-151.0,0.00035616,7]
[341464549,1730909455984,-2381.25,0.00035616,7]
[341464550,1730909455994,-500.0,0.00035616,7]
[341464551,1730909456003,-825.14,0.00035616,7]
[341464552,1730909456013,-500.0,0.00035616,7]
[341464553,1730909456023,-151.0,0.00035616,7]
[341464554,1730909456032,-500.0,0.00035616,7]
[341464555,1730909456042,-489.83507223,0.00035616,7]
[341464556,1730909456051,-500.0,0.00035616,7]
[341464557,1730909456061,-151.0,0.00035616,7]
[341464558,1730909456070,-151.0,0.00035616,7]
[341464559,1730909456080,-48.70442949,0.00035616,7]
[341464560,1730909456578,-451.29557051,0.00035616,7]
[341464561,1730909456588,-1866.94370936,0.00035616,7]
[341464562,1730909456653,-29.48887291,0.00035616,7]
[341464563,1730909456680,-1422.48741773,0.00035616,7]
[341464564,1730909456691,-842.16,0.00035616,7]
[341464565,1730909456701,-500.0,0.00035616,7]
[341464566,1730909456713,-500.0,0.00035616,7]
[341464567,1730909456724,-500.0,0.00035616,7]
[341464568,1730909456734,-500.0,0.00035616,7]
[341464569,1730909456744,-2411.48,0.00035616,7]
[341464570,1730909456754,-500.0,0.00035616,7]
[341464571,1730909456766,-500.0,0.00035616,7]
[341464572,1730909456776,-500.0,0.00035616,7]
[341464573,1730909456786,-153.0,0.00035616,2]
[341464574,1730909456795,-300.0,0.00035616,2]
[341464575,1730909456805,-554.2846032,0.00035625,2]
[341464576,1730909456814,-2688.554145,0.00035625,2]
[341464577,1730909456824,-148.81205831,0.00035625,2]
[341464578,1730909456836,-1207.48460785,0.00035625,2]
[341464579,1730909457110,150.0,0.00018123,2]
[341464580,1730909457552,-151.0,0.000356,7]
[341464581,1730909457563,-500.0,0.00035616,7]
[341464582,1730909457572,-1606.76,0.00035616,7]
[341464583,1730909457582,-5616.57,0.00035616,7]
[341464584,1730909457591,-500.0,0.00035616,7]
[341464585,1730909457603,-500.0,0.00035616,7]
[341464586,1730909457679,-1088.2,0.00035616,7]
[341464587,1730909457689,-500.0,0.00035616,7]
[341464588,1730909457698,-151.0,0.00035616,7]
[341464589,1730909457707,-705.84300634,0.00035625,2]
[341464590,1730909457716,-2129.58004248,0.00035625,2]
[341464591,1730909469990,159.78,0.00015342,2]
[341464593,1730909472206,262.11175,0.0003,2]
[341464596,1730909881933,300.0,0.00019725,2]
[341464597,1730910001460,300.0,0.00019725,2]
[341464599,1730910011751,158.85,0.00015342,2]
[341464600,1730910061919,300.0,0.00019725,2]
[341464601,1730910308431,464241.15,0.00016,2]
[341464602,1730910308456,7772.68,0.00016,2]
[341464603,1730910308482,1772310.52059486,0.00016,2]
[341464604,1730910338122,-1082.6520989,0.00025,2]
[341464606,1730910421504,300.0,0.00019725,2]
[341464607,1730910435115,-1164.27248835,0.000225,2]
[341464608,1730910435136,-564.242106,0.00024875,2]
[341464609,1730910435156,-7590.56939264,0.00025,2]
[341464610,1730910446136,-182.64639168,0.00025,2]
[341464611,1730910450092,-8159.06793419,0.00025,2]
[341464612,1730910450112,-1250.67433294,0.00025,2]
[341464613,1730910500791,150.0,0.00018123,2]
[341464621,1730910541390,159.1,0.00015342,2]
[341464622,1730910548084,-19402.4712,0.00025,2]
[341464623,1730910556326,-1204.19427398,0.00025,2]
[341464624,1730910556346,-16500.0,0.00025,60]
[341464625,1730910556366,-12940.0,0.00025,10]
[341464626,1730910556386,-1742.00459706,0.00025,2]
[341464627,1730910556405,-468.32103365,0.00025,2]
[341464628,1730910556425,-5654.32684239,0.00025,2]
[341464629,1730910556444,-1766.0,0.000269,2]
[341464630,1730910556467,-200.0,0.000288,2]
[341464631,1730910556487,-537.5474319,0.00029063,2]
[341464632,1730910557114,-614.18475,0.0003,2]
[341464633,1730910557134,-223.515,0.0003,2]
[341464634,1730910557154,-223.5145,0.0003,2]
[341464635,1730910557174,-861.84,0.0003,2]
[341464636,1730910557193,-499.999999,0.0003,2]
[341464637,1730910557217,-1710.92,0.00030136,2]
[341464638,1730910557236,-177.33,0.00030137,2]
[341464639,1730910557256,-150.99,0.00030137,2]
[341464640,1730910557276,-607.42,0.00030502,2]
[341464641,1730910557297,-158.85,0.00030548,2]
[341464642,1730910557317,-5494.03462258,0.00031,2]
[341464643,1730910557336,-939.379998,0.00031,32]
[341464644,1730910557356,-500.0,0.00031,30]
[341464645,1730910557376,-528.21002232,0.00031,30]
[341464646,1730910557396,-500.0,0.00031,30]
[341464647,1730910557414,-500.0,0.00031,30]
[341464648,1730910557433,-507.29634184,0.00031,30]
[341464649,1730910557456,-197.53738806,0.00032,10]
[341464650,1730910557477,-502.54362859,0.00032,10]
[341464651,1730910557497,-500.0,0.00032,10]
[341464652,1730910557517,-500.0,0.00032,10]
[341464653,1730910557537,-500.0,0.00032,10]
[341464654,1730910557557,-900.0,0.00032,33]
[341464655,1730910557720,1541.61,0.00031358,2]
[341464656,1730910557774,1541.61,0.00031862,2]
[341464657,1730910562091,-262.11175,0.00032024,2]
[341464658,1730910562111,-1529.8,0.00032024,2]
[341464659,1730910600362,250.0,0.00021,2]
[341464660,1730910601474,300.0,0.00023,2]
[341464661,1730910602814,350.0,0.00025,2]
[341464662,1730910603649,400.0,0.00027,2]
[341464663,1730910605353,450.0,0.00029,2]
[341464664,1730910606454,500.0,0.00031,2]
[341464665,1730910609288,264.822,0.0003,2]
[341464666,1730910609568,264.822,0.0003191,2]
[341464705,1730910632182,-223.5145,0.00032068,2]
[341464706,1730910632191,-1228.68,0.00032131,2]
[341464707,1730910632201,-223.515,0.00032136,2]
[341464708,1730910632210,-791.2905,0.00032197,2]
[341464709,1730910632221,-901.8395,0.00032197,2]
[341464710,1730910632230,-1033.15,0.00032197,2]
[341464711,1730910632239,-614.18475,0.00032199,2]
[341464712,1730910632248,-2905.96295187,0.00032212,2]
[341464713,1730910632262,-588.89704813,0.00032212,2]
[341464714,1730910632272,-163.34,0.00032285,2]
[341464715,1730910632282,-150.0,0.00032297,2]
[341464716,1730910632291,-302.35,0.00032304,2]
[341464717,1730910632301,-397.0,0.00032312,2]
[341464718,1730910632311,-250.0,0.00032339,2]
[341464719,1730910632320,-250.0,0.00032366,2]
[341464720,1730910632330,-1243.99359319,0.00032366,2]
[341464721,1730910632341,-297.61640681,0.00032366,2]
[341464722,1730910632351,-1710.92,0.000324,2]
[341464723,1730910632361,-163.16,0.00032513,2]
[341464724,1730910632371,-373.03,0.0003252,120]
[341464725,1730910632380,-577.9,0.00032534,120]
[341464726,1730910632389,-250.0,0.00032535,2]
[341464727,1730910632399,-200.0,0.00032539,7]
[341464728,1730910632408,-1965.13,0.00032632,2]
[341464729,1730910632417,-159.1,0.0003272,2]
[341464730,1730910632427,-1731.03850249,0.000328,2]
[341464731,1730910632454,-2861.35758388,0.000328,2]
[341464732,1730910632463,-23900.0,0.00032803,2]
[341464733,1730910632472,-1541.61,0.0003287,2]
[341464734,1730910632482,-300.0,0.000329,2]
[341464735,1730910632491,-900.0,0.00033,34]
[341464736,1730910632500,-3995.54436119,0.00033,2]
[341464737,1730910632512,-550.0,0.00033,2]
[341464738,1730910632521,-166.95,0.00033027,2]
[341464739,1730910632530,-1541.61,0.00033373,2]
[341464740,1730910632539,-161.63,0.00033394,2]
[341464741,1730910632549,-161.63,0.00033412,2]
[341464742,1730910632558,-161.63,0.00033429,2]
[341464743,1730910632567,-161.63,0.00033447,2]
[341464744,1730910632576,-170.01,0.0003346,120]
[341464745,1730910632585,-161.63,0.00033464,2]
[341464746,1730910632594,-161.63,0.00033482,2]
[341464747,1730910632603,-161.63,0.000335,2]
[341464748,1730910632612,-161.63,0.00033517,2]
[341464749,1730910632625,-161.63,0.00033535,2]
[341464750,1730910632635,-161.63,0.00033552,2]
[341464751,1730910632644,-161.63,0.0003357,2]
[341464752,1730910632652,-161.63,0.00033587,2]
[341464753,1730910632662,-161.63,0.00033605,2]
[341464754,1730910632671,-161.63,0.00033623,2]
[341464755,1730910632680,-161.63,0.0003364,2]
[341464756,1730910632691,-161.63,0.00033658,2]
[341464757,1730910632701,-161.63,0.00033675,2]
[341464758,1730910632710,-161.63,0.00033693,2]
[341464759,1730910632719,-161.63,0.00033711,2]
[341464760,1730910632729,-161.63,0.00033728,2]
[341464761,1730910632738,-1000.0,0.00033753,2]
[341464762,1730910632748,-151.53,0.00033861,2]
[341464763,1730910632759,-1541.61,0.00033877,2]
[341464764,1730910632768,-302.35,0.00033919,2]
[341464765,1730910632778,-166.95,0.00033923,2]
[341464766,1730910632788,-900.0,0.00034,35]
[341464767,1730910632797,-23079.0,0.0003412,2]
[341464768,1730910633008,-163.42,0.00034196,120]
[341464769,1730910633023,-400.06,0.00034229,2]
[341464770,1730910633033,-1541.61,0.00034381,2]
[341464771,1730910633043,-167.31,0.00034467,2]
[341464772,1730910633053,-1397.991,0.00034645,2]
[341464773,1730910633062,-1710.92,0.00034664,2]
[341464774,1730910633071,-3586.86562386,0.000347,15]
[341464775,1730910633081,-204.46,0.0003479,10]
[341464776,1730910633091,-3545.83889989,0.00034799,5]
[341464777,1730910633101,-1070.37044302,0.00034799,30]
[341464778,1730910633110,-10113.2491,0.000348,2]
[341464779,1730910633119,-34410.4733,0.000348,2]
[341464780,1730910633129,-6827.1395175,0.000348,2]
[341464781,1730910633138,-2375.674,0.000348,2]
[341464782,1730910633148,-361.74271197,0.00034873,2]
[341464783,1730910633159,-536.25916848,0.00034873,2]
[341464784,1730910633169,-1541.61,0.00034885,2]
[341464785,1730910633178,-500.0,0.00034889,7]
[341464786,1730910633187,-500.0,0.00034889,7]
[341464787,1730910633197,-500.0,0.00034889,7]
[341464788,1730910633206,-500.0,0.00034889,7]
[341464789,1730910633216,-500.0,0.00034889,7]
[341464790,1730910633225,-500.0,0.00034889,7]
[341464791,1730910633234,-500.0,0.00034889,7]
[341464792,1730910633245,-500.0,0.00034889,7]
[341464793,1730910633255,-500.0,0.00034889,7]
[341464794,1730910633264,-438.71313431,0.00034889,7]
[341464795,1730910633274,-72878.8109198,0.0003489,2]
[341464796,1730910633283,-163.76925711,0.0003489,2]
[341464797,1730910633292,-1070.37044302,0.00034899,30]
[341464798,1730910633301,-208003.3926,0.000349,2]
[341464799,1730910633311,-3586.86562382,0.00034973,15]
[341464800,1730910633320,-900.0,0.00035,36]
[341464801,1730910633330,-600.0,0.00035,2]
[341464802,1730910633340,-373.03,0.00035104,120]
[341464803,1730910633349,-500.0,0.00035131,14]
[341464804,1730910633358,-536.25916845,0.00035131,2]
[341464805,1730910633367,-2000.0,0.000352,2]
[341464806,1730910633377,-3586.86562382,0.00035247,15]
[341464807,1730910633386,-1500.0,0.00035249,2]
[341464808,1730910633395,-800.0,0.000353,12]
[341464809,1730910633405,-5920.0,0.0003531,2]
[341464810,1730910633414,-290.001,0.0003531,2]
[341464811,1730910633423,-165.842,0.0003531,2]
[341464812,1730910633433,-463.531,0.0003531,2]
[341464813,1730910633442,-300.0,0.00035342,2]
[341464814,1730910633451,-536.25916845,0.00035389,2]
[341464815,1730910633461,-7341.31781544,0.00035399,2]
[341464816,1730910633470,-1700.0,0.000354,12]
[341464817,1730910633479,-1252.0,0.00035401,2]
[341464818,1730910633489,-151.0,0.00035401,2]
[341464819,1730910633498,-37154.21940537,0.00035406,2]
[341464820,1730910633507,-37154.21940537,0.00035411,2]
[341464821,1730910633517,-37154.21940537,0.00035413,2]
[341464822,1730910633526,-7341.31781544,0.00035417,2]
[341464823,1730910633535,-180.0,0.00035417,2]
[341464824,1730910633545,-19961.68728178,0.00035422,2]
[341464825,1730910633554,-19961.68728178,0.00035424,2]
[341464826,1730910633563,-190607.50057038,0.00035425,2]
[341464827,1730910633573,-466.8528364,0.00035434,2]
[341464828,1730910633582,-466.8528364,0.00035435,2]
[341464829,1730910633591,-233970.26721191,0.00035437,2]
[341464830,1730910633604,-459972.85954244,0.00035437,2]
[341464831,1730910633617,-284638.07374026,0.0003544,2]
[341464832,1730910633641,-6642.082792,0.0003544,2]
[341464833,1730910633652,-913.84743751,0.0003544,2]
[341464834,1730910633676,-561.26390979,0.0003544,2]
[341464847,1730910638052,-170.38,0.0003479,10]
[341464848,1730910638061,-431.85510201,0.00034798,7]
[341464849,1730910638071,-3.80675267,0.00035401,2]
[341464850,1730910638344,-1153.19324733,0.00035401,2]
[341464851,1730910638353,-904.30367028,0.0003544,2]
[341464852,1730910638365,-37616.033428,0.0003544,2]
[341464853,1730910638392,-57229.87309537,0.0003544,2]
[341464854,1730910638407,-5959.99859737,0.0003544,2]
[341464860,1730910638491,-1517.08740523,0.0003544,2]
[341464882,1730910640028,-3017.83382274,0.0003544,2]
[341464883,1730910640144,-792.81019852,0.0003544,2]
[341464884,1730910640199,-257.85842907,0.0003544,2]
[341464895,1730910643431,-500.0,0.00034899,7]
[341464896,1730910643440,-500.0,0.00034899,7]
[341464897,1730910643450,-500.0,0.00034899,7]
[341464898,1730910643469,-500.0,0.00034899,7]
[341464899,1730910643478,-500.0,0.00034899,7]
[341464900,1730910643488,-500.0,0.00034899,7]
[341464901,1730910643497,-500.0,0.00034899,7]
[341464902,1730910643506,-8920.72331671,0.00035401,2]
[341464903,1730910643948,-4689.27668329,0.00035401,2]
[341464904,1730910643963,-142106.67632205,0.0003544,2]
[341464905,1730910644055,-1906.14306062,0.0003544,2]
[341464906,1730910644166,-149879.24084554,0.0003544,2]
[341464907,1730910644244,-466.8528364,0.00035441,2]
[341464908,1730910644317,-274453.73589769,0.00035441,2]
[341464915,1730910644898,-744.41888404,0.00035441,2]
[341464918,1730910645004,-1000.0,0.00035441,2]
[341464920,1730910645019,-316055.62376784,0.00035441,2]
[341464930,1730910646313,-828.26194718,0.00035441,2]
[341464931,1730910646329,-100861.0862576,0.00035441,2]
[341464932,1730910646339,-37154.21940537,0.00035443,2]
[341464933,1730910646349,-693943.12675435,0.00035445,2]
[341464934,1730910646358,-7341.31781544,0.00035446,2]
[341464935,1730910646368,-692.58299547,0.00035449,2]
[341464936,1730910646377,-7341.31781544,0.0003545,2]
[341464937,1730910646387,-663.743,0.00035452,42]
[341464938,1730910646396,-692.58299547,0.00035454,2]
[341464939,1730910646405,-466.8528364,0.00035455,2]
[341464940,1730910646415,-692.58299547,0.00035457,2]
[341464941,1730910646425,-186.49256059,0.00035457,2]
[341464942,1730910646435,-19961.68728178,0.00035458,2]
[341464943,1730910646445,-24079.13708062,0.0003546,2]
[341464944,1730910646524,-1035.45377636,0.0003546,2]
[341464945,1730910646539,-59383.19999999,0.0003546,2]
[341464946,1730910646695,-20.29404347,0.0003546,2]
[341464947,1730910662648,207.09365794,0.00023,2]
[341464948,1730910701545,250.0,0.00021,2]
[341464949,1730910702702,300.0,0.00023,2]
[341464950,1730910703740,350.0,0.00025,2]
[341464951,1730910704851,400.0,0.00027,2]
[341464952,1730910705927,450.0,0.00029,2]
[341464953,1730910707067,500.0,0.00031,2]
[341464954,1730910735348,500.0,0.00031,30]
[341464955,1730910735704,500.0,0.000307,30]
[341464956,1730910737567,256.699,0.0003,2]
[341464957,1730910742679,264.822,0.0003,2]
[341464998,1730911019368,162.34,0.00015342,2]
[341464999,1730911042820,-202.0,0.000271,2]
[341465000,1730911042851,-944.0,0.000271,2]
[341465001,1730911042877,-157.5,0.0002756,2]
[341465002,1730911042904,-151.0,0.0003,120]
[341465003,1730911042933,-243.089,0.0003,2]
[341465004,1730911042960,-49518.89652741,0.00031,2]
[341465005,1730911042987,-256.699,0.00032233,2]
[341465006,1730911043013,-264.822,0.00032458,2]
[341465007,1730911043039,-243.089,0.00032557,2]
[341465008,1730911043066,-550.0,0.00033,2]
[341465009,1730911043096,-150.99,0.00033,2]
[341465010,1730911043121,-1220.16,0.00033,2]
[341465011,1730911043147,-23900.0,0.00033959,2]
[341465012,1730911043172,-250.0,0.00034115,2]
[341465013,1730911043199,-170.01,0.00034322,120]
[341465014,1730911043226,-803.74,0.00034322,2]
[341465015,1730911043252,-999.99,0.00034322,2]
[341465016,1730911043278,-501.45,0.00034442,2]
[341465017,1730911043303,-662.77,0.00034442,2]
[341465018,1730911043333,-851.94,0.00034502,10]
[341465019,1730911043358,-22623.2769,0.00034512,7]
[341465020,1730911043385,-1000.0,0.00034589,2]
[341465021,1730911043446,-202.0,0.00034612,2]
[341465022,1730911043461,-944.0,0.00034612,2]
[341465023,1730911043472,-157.5,0.00034612,2]
[341465024,1730911043483,-151.0,0.00034612,2]
[341465025,1730911043499,-243.089,0.00034612,2]
[341465026,1730911043528,-49518.89652741,0.00034612,2]
[341465027,1730911043546,-256.699,0.00034612,2]
[341465028,1730911043571,-264.822,0.00034612,2]
[341465029,1730911043586,-243.089,0.00034612,2]
[341465030,1730911043604,-550.0,0.00034612,2]
[341465031,1730911043622,-150.99,0.00034612,2]
[341465032,1730911043640,-1220.16,0.00034612,2]
[341465033,1730911043653,-23900.0,0.00034612,2]
[341465034,1730911043665,-250.0,0.00034612,2]
[341465035,1730911043679,-170.01,0.00034612,2]
[341465036,1730911043738,-150.99,0.00032458,30]
[341465037,1730911043750,-652.75,0.00034612,2]
[341465038,1730911043833,-999.99,0.00034612,2]
[341465039,1730911043873,-501.45,0.00034612,2]
[341465040,1730911043885,-662.77,0.00034612,2]
[341465041,1730911043897,-851.94,0.00034612,2]
[341465042,1730911043913,-8929.56447259,0.00034612,2]
[341465043,1730911043924,-250.0,0.00034615,2]
[341465044,1730911043934,-335.72,0.00034669,120]
[341465045,1730911043945,-553.211,0.0003473,2]
[341465046,1730911043954,-500.0,0.00034789,7]
[341465047,1730911043963,-500.0,0.00034789,7]
[341465048,1730911043973,-649.06846267,0.00034789,7]
[341465049,1730911043983,-500.0,0.00034789,7]
[341465050,1730911043992,-500.0,0.00034789,7]
[341465051,1730911044002,-500.0,0.00034789,7]
[341465052,1730911044012,-9405.71296474,0.0003479,2]
[341465053,1730911044027,-1000.0,0.0003479,2]
[341465054,1730911044038,-62216.06113526,0.0003479,2]
[341465055,1730911044048,-2510.80593671,0.000349,15]
[341465056,1730911044058,-358.28807321,0.0003491,2]
[341465059,1730911535978,158.46,0.00015342,2]
[341465060,1730911537573,209.46311375,0.000211,2]
[341465061,1730911544178,-1405.70801157,0.000272,2]
[341465063,1730911630097,-365.29198843,0.000272,2]
[341465064,1730911630117,-4350.24295512,0.0002884,2]
[341465065,1730911630138,-1454.28,0.00032612,2]
[341465066,1730911630158,-250.0,0.00033985,120]
[341465067,1730911630179,-250.0,0.00034044,2]
[341465068,1730911630200,-7698.7766847,0.00034264,2]
[341465069,1730911633084,-13343.64857487,0.00034264,2]
[341465070,1730911702120,221.24169696,0.00018,10]
[341465082,1730911832073,-158.87,0.00034217,2]
[341465085,1730911832083,-2069.02439581,0.00034264,2]
[341465097,1730911832245,-788.55034462,0.00034264,2]
[341465098,1730911832254,-516.57,0.00034274,2]
[341465099,1730911832263,-337.68,0.00034313,120]
[341465100,1730911832273,-289.43,0.00034338,2]
[341465101,1730911832282,-29205.14,0.00034338,10]
[341465102,1730911832291,-200.0,0.00034352,2]
[341465103,1730911832301,-386.77,0.00034352,2]
[341465104,1730911832310,-318.93,0.00034373,120]
[341465105,1730911832320,-263.5635,0.00034512,2]
[341465106,1730911832329,-167.31,0.00034559,2]
[341465107,1730911832338,-508.63441,0.0003456,2]
[341465108,1730911832349,-1454.28,0.00034876,2]
[341465109,1730911832358,-600.0,0.00035,2]
[341465110,1730911832368,-4338.4168,0.000353,2]
[341465111,1730911832378,-700.0,0.000353,12]
[341465112,1730911832388,-1500.0,0.000354,12]
[341465113,1730911832397,-106089.41566994,0.0003546,2]
[341465114,1730911832406,-692.58299547,0.00035461,2]
[341465115,1730911832416,-466.8528364,0.00035466,2]
[341465116,1730911832426,-109719.39380529,0.00035469,2]
[341465117,1730911832450,-6794.24906735,0.00035469,2]
[341465122,1730911832500,-3718.0713,0.00035469,2]
[341465126,1730911838357,-1596.50804651,0.00035469,2]
[341465127,1730911838589,-12079.45052697,0.00035469,2]
[341465128,1730911838608,-14038.68489524,0.00035469,2]
[341465129,1730911838737,-3900.64439579,0.00035469,2]
[341465130,1730911838748,-785.75890542,0.00035469,2]
[341465133,1730911840074,-1207.40389748,0.00035469,2]
[341465135,1730911840183,-1482.62761943,0.00035469,2]
[341465136,1730911840195,-14080.658,0.00035469,2]
[341465137,1730911840242,-21204.0501109,0.00035469,2]
[341465138,1730911840251,-7341.31781544,0.00035473,2]
[341465139,1730911840261,-19961.68728178,0.00035476,2]
[341465140,1730911840270,-190607.50057038,0.00035479,2]
[341465141,1730911840280,-356.91562191,0.00035485,2]
[341465142,1730911840289,-37154.21940537,0.00035486,2]
[341465143,1730911840299,-190607.50057038,0.00035487,2]
[341465144,1730911840309,-19961.68728178,0.00035488,2]
[341465145,1730911840318,-7341.31781544,0.00035489,2]
[341465146,1730911840328,-19961.68728178,0.0003549,2]
[341465147,1730911840339,-190607.50057038,0.00035491,2]
[341465148,1730911840349,-692.58299547,0.00035491,2]
[341465149,1730911840359,-37154.21940537,0.00035494,2]
[341465150,1730911840368,-692.58299547,0.00035495,2]
[341465151,1730911840378,-693943.12675435,0.00035496,2]
[341465152,1730911840390,-693943.12675435,0.00035497,2]
[341465153,1730911840400,-466.8528364,0.00035499,2]
[341465154,1730911840410,-2000.0,0.000355,2]
[341465155,1730911840420,-530.995,0.000355,42]
[341465156,1730911840429,-2200.0,0.000355,12]
[341465157,1730911840439,-159.99943343,0.00035573,5]
[341465158,1730911840448,-500.0,0.00035573,2]
[341465159,1730911840457,-164.18621817,0.00035574,7]
[341465160,1730911840467,-127670.439957,0.00035575,2]
[341465162,1730911840477,-500.0,0.00035585,7]
[341465164,1730911840487,-204.34792387,0.00035585,7]
[341465166,1730911840496,-500.0,0.00035585,7]
[341465168,1730911840506,-500.0,0.00035585,7]
[341465170,1730911840515,-500.0,0.00035585,7]
[341465172,1730911840526,-170227.253276,0.00035586,2]
[341465174,1730911840536,-157428.785209,0.00035586,2]
[341465176,1730911840546,-1070.37044302,0.00035595,30]
[341465178,1730911840556,-833.40780129,0.00035596,2]
[341465180,1730911840566,-124404.42424443,0.00035596,2]
[341465182,1730911840581,-14804.42710202,0.00035596,2]
[341465184,1730911840593,-2857.31842096,0.00035596,2]
[341465186,1730911840610,-1004.67663671,0.00035596,2]
[341465189,1730911840631,-666.11000001,0.00035596,2]
[341465191,1730911840644,-1771.44233814,0.00035596,2]
[341465194,1730911840672,-4377.81776012,0.00035596,2]
[341465448,1730911843217,-34526.64121361,0.00035596,2]
[341465450,1730911843227,-33873.35878637,0.00035596,2]
[341465453,1730911843242,-3486.05,0.00035596,2]
[341465457,1730911843274,-3153.38806035,0.00035596,2]
[341465459,1730911843286,-3514.8755642,0.00035596,2]
[341465465,1730911843330,-5447.22684182,0.00035596,2]
[341465468,1730911843742,-156.18977914,0.00035596,2]
[341465469,1730911843754,-519.29165941,0.00035596,2]
[341465471,1730911843773,-7119.66593436,0.00035596,2]
[341465473,1730911843784,-5590.40898024,0.00035596,2]
[341465478,1730911846216,-122349.87993411,0.00035596,2]
[341465479,1730911846227,-398.0,0.000356,21]
[341465480,1730911846238,-150.0,0.000356,24]
[341465481,1730911846248,-3000.0,0.000356,12]
[341465482,1730911846258,-362.0,0.000356,2]
[341465483,1730911846268,-1000.0,0.000356,2]
[341465484,1730911846279,-1070.37044303,0.00035605,30]
[341465485,1730911846289,-500.0,0.00035605,2]
[341465486,1730911846298,-1000.0,0.00035605,30]
[341465487,1730911846310,-127670.439957,0.00035606,2]
[341465488,1730911846321,-259294.469756,0.00035606,2]
[341465489,1730911846331,-150.0,0.00035615,7]
[341465490,1730911846341,-152.681687,0.00035616,7]
[341465491,1730911846351,-154.296734,0.00035616,7]
[341465492,1730911846360,-500.0,0.00035616,7]
[341465493,1730911846370,-154.134433,0.00035616,7]
[341465494,1730911846379,-151.0,0.00035616,7]
[341465495,1730911846391,-151.0,0.00035616,7]
[341465496,1730911846401,-151.0,0.00035616,7]
[341465497,1730911846412,-151.0,0.00035616,7]
[341465498,1730911846422,-151.0,0.00035616,7]
[341465499,1730911846432,-151.0,0.00035616,7]
[341465500,1730911846442,-151.0,0.00035616,7]
[341465501,1730911846452,-151.0,0.00035616,7]
[341465502,1730911846462,-151.0,0.00035616,7]
[341465503,1730911846472,-151.0,0.00035616,7]
[341465504,1730911846482,-151.0,0.00035616,7]
[341465505,1730911846491,-277.404964,0.00035616,7]
[341465506,1730911846501,-151.0,0.00035616,7]
[341465507,1730911846512,-151.0,0.00035616,7]
[341465508,1730911846522,-151.0,0.00035616,7]
[341465509,1730911846531,-151.0,0.00035616,7]
[341465510,1730911846542,-151.0,0.00035616,7]
[341465511,1730911846552,-151.0,0.00035616,7]
[341465512,1730911846562,-151.0,0.00035616,7]
[341465513,1730911846573,-151.0,0.00035616,7]
[341465514,1730911846583,-156.648436,0.00035616,7]
[341465515,1730911846593,-151.0,0.00035616,7]
[341465516,1730911846603,-151.0,0.00035616,7]
[341465517,1730911846613,-151.0,0.00035616,7]
[341465518,1730911846623,-153.831947,0.00035616,7]
[341465519,1730911846633,-151.0,0.00035616,7]
[341465520,1730911846645,-151.0,0.00035616,7]
[341465521,1730911846655,-151.0,0.00035616,7]
[341465522,1730911846665,-151.0,0.00035616,7]
[341465523,1730911846676,-151.0,0.00035616,7]
[341465524,1730911846686,-157.107717,0.00035616,7]
[341465525,1730911846697,-151.0,0.00035616,7]
[341465526,1730911846707,-151.933114,0.00035616,7]
[341465527,1730911846718,-151.0,0.00035616,7]
[341465528,1730911846728,-151.0,0.00035616,7]
[341465529,1730911846738,-157.634749,0.00035616,7]
[341465530,1730911846747,-151.0,0.00035616,7]
[341465531,1730911846756,-151.0,0.00035616,7]